fUSD/lending_fUSD_20250519
["ID","MTS","AMOUNT","RATE_DAILY","PERIOD"]
[361592178,1747627854408,-400.0,0.00013808,2]
[361592179,1747627854417,-463.77,0.00013808,2]
[361592180,1747627854427,-588.25,0.00013808,2]
[361592181,1747627854436,-400.0,0.00013808,2]
[361592182,1747627854446,-400.0,0.00013808,2]
[361592183,1747627854455,-400.0,0.00013808,2]
[361592184,1747627854464,-710.24,0.00013808,2]
[361592185,1747627854474,-400.0,0.00013808,2]
[361592186,1747627854484,-2196.0,0.00013808,2]
[361592187,1747627854494,-1745.17,0.00013808,2]
[361592188,1747627854504,-400.0,0.00013808,2]
[361592189,1747627854514,-400.0,0.00013808,2]
[361592190,1747627854525,-400.0,0.00013808,2]
[361592191,1747627854536,-400.0,0.00013808,2]
[361592192,1747627854545,-1009.09,0.00013808,2]
[361592193,1747627854555,-969.85,0.00013808,2]
[361592194,1747627854564,-400.0,0.00013808,2]
[361592195,1747627854573,-400.0,0.00013808,2]
[361592196,1747627854583,-420.6,0.00013808,2]
[361592197,1747627854592,-1184.5,0.00013808,2]
[361592198,1747627854601,-400.0,0.00013808,2]
[361592199,1747627854610,-2535.63,0.00013808,2]
[361592200,1747627854620,-4485.19,0.00013808,2]
[361592201,1747627854630,-1219.61,0.00013808,2]
[361592202,1747627854639,-400.0,0.00013808,2]
[361592203,1747627854649,-400.0,0.00013808,2]
[361592204,1747627854658,-1027.33,0.00013808,2]
[361592205,1747627854668,-405.30858522,0.00013808,2]
[361592206,1747627854678,-424.22,0.00013808,2]
[361592207,1747627854688,-400.0,0.00013808,2]
[361592208,1747627854698,-744.43,0.00013808,2]
[361592209,1747627854708,-400.0,0.00013808,2]
[361592210,1747627854719,-1200.99,0.00013808,2]
[361592211,1747627854730,-400.0,0.00013808,2]
[361592212,1747627854741,-521.74,0.00013808,2]
[361592213,1747627854751,-1151.15,0.00013808,2]
[361592214,1747627854761,-86939.55,0.00013808,2]
[361592215,1747627854771,-400.0,0.00013808,2]
[361592216,1747627854782,-433.16,0.00013808,2]
[361592217,1747627854791,-632.71,0.00013808,2]
[361592218,1747627854801,-400.0,0.00013808,2]
[361592219,1747627854813,-401.62,0.00013808,2]
[361592220,1747627854827,-886.8,0.00013808,2]
[361592221,1747627854839,-400.0,0.00013808,2]
[361592222,1747627854849,-514.63,0.00013808,2]
[361592223,1747627854859,-400.0,0.00013808,2]
[361592224,1747627854869,-3496.71,0.00013808,2]
[361592225,1747627854878,-1098.35,0.00013808,2]
[361592226,1747627854887,-400.0,0.00013808,2]
[361592227,1747627854898,-400.0,0.00013808,2]
[361592228,1747627854907,-400.0,0.00013808,2]
[361592229,1747627854916,-928.73,0.00013808,2]
[361592230,1747627854926,-827.07,0.00013808,2]
[361592231,1747627854935,-400.0,0.00013808,2]
[361592232,1747627854945,-962.76,0.00013808,2]
[361592233,1747627854954,-777.16,0.00013808,2]
[361592234,1747627854963,-540.83,0.00013808,2]
[361592235,1747627854972,-442.07,0.00013808,2]
[361592236,1747627854982,-3923.43,0.00013808,2]
[361592237,1747627854991,-400.0,0.00013808,2]
[361592238,1747627855001,-793.33,0.00013808,2]
[361592239,1747627855012,-610.23,0.00013808,2]
[361592240,1747627855024,-400.0,0.00013808,2]
[361592241,1747627855034,-400.0,0.00013808,2]
[361592242,1747627855044,-400.0,0.00013808,2]
[361592243,1747627855054,-3907.5,0.00013808,2]
[361592244,1747627855064,-1271.46,0.00013808,2]
[361592245,1747627855073,-400.0,0.00013808,2]
[361592246,1747627855082,-400.0,0.00013808,2]
[361592247,1747627855093,-188.91490901,0.00013808,2]
[361592248,1747627855103,-907.16,0.00013808,2]
[361592249,1747627855113,-776.72,0.00013808,2]
[361592250,1747627855123,-1599.08,0.00013808,2]
[361592251,1747627855134,-400.0,0.00013808,2]
[361592252,1747627855144,-4865.63,0.00013808,2]
[361592253,1747627855154,-216.79440735,0.00013808,2]
[361592254,1747627855165,-2367.53,0.00013808,2]
[361592255,1747627855175,-400.0,0.00013808,2]
[361592256,1747627855184,-400.0,0.00013808,2]
[361592257,1747627855193,-10572.84,0.00013808,2]
[361592258,1747627855203,-514.64,0.00013808,2]
[361592259,1747627855212,-729.13,0.00013808,2]
[361592260,1747627855221,-400.0,0.00013808,2]
[361592261,1747627855528,-2452.63,0.00013808,2]
[361592262,1747627855538,-400.0,0.00013808,2]
[361592263,1747627855547,-400.0,0.00013808,2]
[361592264,1747627855556,-1813.68,0.00013808,2]
[361592265,1747627855566,-641.22,0.00013808,2]
[361592266,1747627855575,-705.14,0.00013808,2]
[361592267,1747627855584,-1458.33,0.00013808,2]
[361592268,1747627855594,-1000.0,0.00013808,2]
[361592269,1747627855603,-442.23,0.00013808,2]
[361592270,1747627855612,-418.8,0.00013808,2]
[361592271,1747627855621,-1274.4,0.00013808,2]
[361592272,1747627855630,-20360.78,0.00013808,2]
[361592273,1747627855639,-400.0,0.00013808,2]
[361592274,1747627855649,-1186.58,0.00013808,2]
[361592275,1747627855659,-6582.22,0.00013808,2]
[361592276,1747627855668,-3411.66,0.00013808,2]
[361592277,1747627855678,-400.0,0.00013808,2]
[361592278,1747627855687,-400.0,0.00013808,2]
[361592279,1747627855696,-1042.727932,0.00013808,2]
[361592280,1747627855706,-400.0,0.00013808,2]
[361592281,1747627855716,-2043.92,0.00013808,2]
[361592282,1747627855726,-1418.22,0.00013808,2]
[361592283,1747627855735,-1835.49,0.00013808,2]
[361592284,1747627855744,-400.0,0.00013808,2]
[361592285,1747627855753,-400.0,0.00013808,2]
[361592286,1747627855763,-427.69,0.00013808,2]
[361592287,1747627855772,-3690.01,0.00013808,2]
[361592288,1747627855781,-400.0,0.00013808,2]
[361592289,1747627855791,-673.7,0.00013808,2]
[361592290,1747627855800,-400.0,0.00013808,2]
[361592291,1747627855810,-1868.13,0.00013808,2]
[361592292,1747627855823,-2485.81,0.00013808,2]
[361592293,1747627855832,-400.0,0.00013808,2]
[361592294,1747627855841,-8582.71,0.00013808,2]
[361592295,1747627855851,-2508.44,0.00013808,2]
[361592296,1747627855860,-553.92,0.00013808,2]
[361592297,1747627855869,-400.0,0.00013808,2]
[361592298,1747627855879,-640.35,0.00013808,2]
[361592299,1747627855888,-400.0,0.00013808,2]
[361592300,1747627855897,-430.43,0.00013808,2]
[361592301,1747627855907,-1786.89,0.00013808,2]
[361592302,1747627855917,-650.63,0.00013808,2]
[361592303,1747627855927,-719.15,0.00013808,2]
[361592304,1747627855936,-407.91409517,0.00013808,2]
[361592305,1747627855945,-1177.42,0.00013808,2]
[361592306,1747627855954,-400.0,0.00013808,2]
[361592307,1747627855963,-400.0,0.00013808,2]
[361592308,1747627855973,-2299.86,0.00013808,2]
[361592309,1747627855983,-580.94,0.00013808,2]
[361592310,1747627855993,-413.92,0.00013808,2]
[361592311,1747627856002,-2439.85,0.00013808,2]
[361592312,1747627856011,-1260.27,0.00013808,2]
[361592313,1747627856020,-540.28,0.00013808,2]
[361592314,1747627856029,-3388.57,0.00013808,2]
[361592315,1747627856038,-4673.83,0.00013808,2]
[361592316,1747627856048,-405.67554366,0.00013808,2]
[361592317,1747627856057,-406.24,0.00013808,2]
[361592318,1747627856066,-400.0,0.00013808,2]
[361592319,1747627856075,-160.50663043,0.00013808,2]
[361592320,1747627856085,-797.37,0.00013808,2]
[361592321,1747627856094,-3588.37,0.00013808,2]
[361592322,1747627856103,-472.73,0.00013808,2]
[361592323,1747627856112,-400.0,0.00013808,2]
[361592324,1747627856121,-11482.57,0.00013808,2]
[361592325,1747627856130,-1996.65,0.00013808,2]
[361592326,1747627856139,-2516.6,0.00013808,2]
[361592327,1747627856149,-414.92,0.00013808,2]
[361592328,1747627856158,-400.0,0.00013808,2]
[361592329,1747627856167,-1163.84,0.00013808,2]
[361592330,1747627856176,-400.0,0.00013808,2]
[361592331,1747627856185,-419.41,0.00013808,2]
[361592332,1747627856195,-1148.51,0.00013808,2]
[361592333,1747627856205,-525.82824221,0.00013808,2]
[361592334,1747627856214,-718.88,0.00013808,2]
[361592335,1747627856223,-2331.94,0.00013808,2]
[361592336,1747627856233,-400.0,0.00013808,2]
[361592337,1747627856242,-400.0,0.00013808,2]
[361592338,1747627856251,-608.35,0.00013808,2]
[361592339,1747627856260,-1214.03,0.00013808,2]
[361592340,1747627856270,-400.81043563,0.00013808,2]
[361592341,1747627856279,-1637.18,0.00013808,2]
[361592342,1747627856288,-2086.11,0.00013808,2]
[361592343,1747627856298,-1067.27,0.00013808,2]
[361592344,1747627856308,-2306.53,0.00013808,2]
[361592345,1747627856317,-7183.51,0.00013808,2]
[361592346,1747627856327,-696.27,0.00013808,2]
[361592347,1747627856336,-1417.42,0.00013808,2]
[361592348,1747627856346,-1029.06,0.00013808,2]
[361592349,1747627856355,-925.9,0.00013808,2]
[361592350,1747627856365,-1415.36,0.00013808,2]
[361592351,1747627856375,-400.0,0.00013808,2]
[361592352,1747627856385,-407.24,0.00013808,2]
[361592353,1747627856394,-400.0,0.00013808,2]
[361592354,1747627856404,-689.05,0.00013808,2]
[361592355,1747627856414,-3147.12,0.00013808,2]
[361592356,1747627856429,-400.0,0.00013808,2]
[361592357,1747627856439,-400.0,0.00013808,2]
[361592358,1747627856449,-1409.53635359,0.00013808,2]
[361592359,1747627856965,-1130.00364641,0.00013808,2]
[361592360,1747627856974,-1106.23,0.00013808,2]
[361592361,1747627856984,-875.09527371,0.00013808,2]
[361592362,1747627856994,-75.87472629,0.00013808,2]
[361592363,1747627857003,-400.0,0.00013808,2]
[361592364,1747627857012,-888.88,0.00013808,2]
[361592365,1747627857021,-791.88,0.00013808,2]
[361592366,1747627857030,-1933.20213475,0.00013833,2]
[361592367,1747627857039,-1404.39695869,0.00013833,2]
[361592368,1747627857049,-151.0,0.00013846,2]
[361592369,1747627857058,-151.0,0.00013846,2]
[361592370,1747627857067,-151.0,0.00013846,2]
[361592371,1747627857078,-151.0,0.00013847,2]
[361592372,1747627857088,-151.0,0.00013847,2]
[361592373,1747627857097,-151.0,0.00013847,2]
[361592374,1747627857106,-226.14403,0.00013852,2]
[361592375,1747627857115,-1508.3440396,0.00013859,2]
[361592376,1747627857124,-1933.20213475,0.00013866,2]
[361592377,1747627857133,-1404.39695869,0.00013866,2]
[361592378,1747627857142,-790.0,0.00013872,2]
[361592379,1747627857151,-150.0,0.00013878,2]
[361592380,1747627857160,-150.109,0.00013898,2]
[361592381,1747627857169,-269.796,0.00013898,2]
[361592382,1747627857178,-192.703,0.00013898,2]
[361592383,1747627857187,-274.452,0.00013898,2]
[361592384,1747627857196,-284.147,0.00013898,2]
[361592385,1747627857205,-213.331,0.00013898,2]
[361592386,1747627857214,-238.851,0.00013898,2]
[361592387,1747627857223,-183.087,0.00013898,2]
[361592388,1747627857233,-260.979,0.00013898,2]
[361592389,1747627857242,-203.392,0.00013898,2]
[361592390,1747627857251,-799.0,0.00013898,2]
[361592391,1747627857260,-554.0,0.00013898,2]
[361592392,1747627857270,-391.888,0.00013898,2]
[361592393,1747627857283,-226.14403,0.000139,2]
[361592394,1747627857292,-158.93013537,0.000139,2]
[361592395,1747627857301,-1933.20213475,0.000139,2]
[361592396,1747627857310,-1404.39695869,0.000139,2]
[361592397,1747627857319,-636.38,0.00013916,2]
[361592398,1747627857329,-636.38,0.00013916,2]
[361592399,1747627857338,-500.0,0.00013916,2]
[361592400,1747627857347,-500.0,0.00013916,2]
[361592401,1747627857356,-500.0,0.00013916,2]
[361592402,1747627857365,-500.0,0.00013916,2]
[361592403,1747627857374,-3162.524892,0.00013917,2]
[361592404,1747627857383,-441.82,0.00013917,2]
[361592405,1747627857393,-927.416064,0.00013917,2]
[361592406,1747627857402,-400.0,0.00013917,2]
[361592407,1747627857411,-400.0,0.00013917,2]
[361592408,1747627857422,-468.14,0.00013917,2]
[361592409,1747627857431,-400.0,0.00013917,2]
[361592410,1747627857442,-400.0,0.00013917,2]
[361592411,1747627857451,-400.0,0.00013917,2]
[361592412,1747627857460,-400.0,0.00013917,2]
[361592413,1747627857469,-400.0,0.00013917,2]
[361592414,1747627857478,-400.0,0.00013917,2]
[361592415,1747627857487,-400.0,0.00013917,2]
[361592416,1747627857496,-400.0,0.00013917,2]
[361592417,1747627857505,-400.0,0.00013917,2]
[361592418,1747627857514,-408.80402714,0.00013917,2]
[361592419,1747627857523,-402.01013471,0.00013917,2]
[361592420,1747627857532,-400.0,0.00013917,2]
[361592421,1747627857540,-400.0,0.00013917,2]
[361592422,1747627857549,-400.0,0.00013917,2]
[361592423,1747627857558,-400.0,0.00013917,2]
[361592424,1747627857567,-504.21,0.00013917,2]
[361592425,1747627857576,-400.0,0.00013917,2]
[361592426,1747627857585,-400.0,0.00013917,2]
[361592427,1747627857594,-405.13263768,0.00013917,2]
[361592428,1747627857606,-151.0,0.00013917,2]
[361592429,1747627857615,-448.85,0.00013917,2]
[361592430,1747627857624,-631.19,0.00013917,2]
[361592431,1747627857633,-400.0,0.00013917,2]
[361592432,1747627857642,-600.52,0.00013917,2]
[361592433,1747627857651,-900.28,0.00013917,2]
[361592434,1747627857660,-489.91,0.00013917,2]
[361592435,1747627857670,-400.0,0.00013917,2]
[361592436,1747627857679,-400.0,0.00013917,2]
[361592437,1747627857688,-151.0,0.00013917,2]
[361592438,1747627857697,-693.22,0.00013917,2]
[361592439,1747627857706,-400.0,0.00013917,2]
[361592440,1747627857715,-400.0,0.00013917,2]
[361592441,1747627857724,-400.0,0.00013917,2]
[361592442,1747627857733,-400.0,0.00013917,2]
[361592443,1747627857742,-400.0,0.00013917,2]
[361592444,1747627857751,-400.0,0.00013917,2]
[361592445,1747627857759,-400.0,0.00013917,2]
[361592446,1747627857768,-152.445254,0.00013917,2]
[361592447,1747627857778,-502.35,0.00013917,2]
[361592448,1747627857787,-400.0,0.00013917,2]
[361592449,1747627857796,-400.0,0.00013917,2]
[361592450,1747627857804,-266.412641,0.00013917,2]
[361592451,1747627857814,-266.412641,0.00013917,2]
[361592452,1747627857826,-154.815234,0.00013917,2]
[361592453,1747627857835,-400.0,0.00013917,2]
[361592454,1747627857844,-285.13853261,0.00013917,2]
[361592455,1747627857853,-400.0,0.00013917,2]
[361592456,1747627857863,-400.0,0.00013917,2]
[361592457,1747627857872,-400.0,0.00013917,2]
[361592458,1747627857882,-400.0,0.00013917,2]
[361592459,1747627857891,-151.0,0.00013917,2]
[361592460,1747627857900,-151.0,0.00013917,2]
[361592461,1747627857910,-400.0,0.00013917,2]
[361592462,1747627857919,-406.45,0.00013917,2]
[361592463,1747627857929,-151.0,0.00013917,2]
[361592464,1747627857938,-859.36,0.00013917,2]
[361592465,1747627857947,-439.82,0.00013917,2]
[361592466,1747627857958,-890.04,0.00013917,2]
[361592467,1747627857971,-400.0,0.00013917,2]
[361592468,1747627857985,-449.79,0.00013917,2]
[361592469,1747627857996,-400.0,0.00013917,2]
[361592470,1747627858007,-707.55,0.00013917,2]
[361592471,1747627858019,-488.32,0.00013917,2]
[361592472,1747627858031,-400.0,0.00013917,2]
[361592473,1747627858043,-400.0,0.00013917,2]
[361592474,1747627858055,-824.3,0.00013917,2]
[361592475,1747627858068,-832.56,0.00013917,2]
[361592476,1747627858080,-151.0,0.00013917,2]
[361592477,1747627858093,-550.53,0.00013917,2]
[361592478,1747627858105,-180.49,0.00013917,2]
[361592479,1747627858117,-715.63,0.00013917,2]
[361592480,1747627858127,-400.0,0.00013917,2]
[361592481,1747627858139,-419.3,0.00013917,2]
[361592482,1747627858151,-400.0,0.00013917,2]
[361592483,1747627858163,-995.24,0.00013917,2]
[361592484,1747627858176,-400.0,0.00013917,2]
[361592485,1747627858189,-400.0,0.00013917,2]
[361592486,1747627858202,-523.55244931,0.00013917,2]
[361592487,1747627858215,-400.0,0.00013917,2]
[361592488,1747627858226,-400.0,0.00013917,2]
[361592489,1747627858240,-400.0,0.00013917,2]
[361592490,1747627858252,-493.55,0.00013917,2]
[361592491,1747627858267,-400.0,0.00013917,2]
[361592492,1747627858280,-400.0,0.00013917,2]
[361592493,1747627858291,-522.48,0.00013917,2]
[361592494,1747627858303,-39.93321517,0.00013917,2]
[361592495,1747627858355,-887.80873534,0.00013598,2]
[361592496,1747627858383,-703.11646466,0.00013598,2]
[361592497,1747627858395,-530.47853534,0.00013917,2]
[361592498,1747627858426,-237.71824949,0.00013917,2]
[361592499,1747627858436,-400.0,0.00013917,2]
[361592500,1747627858448,-399.88175479,0.00013917,2]
[361592501,1747627859305,-2265.12,0.00013698,2]
[361592502,1747627859316,-400.0,0.00013698,2]
[361592503,1747627859326,-2265.12,0.00013808,2]
[361592504,1747627859338,-400.0,0.00013808,2]
[361592505,1747627859349,-104.50824521,0.00013917,2]
[361592506,1747627859360,-400.0,0.00013917,2]
[361592507,1747627859371,-584.43,0.00013917,2]
[361592508,1747627859383,-400.0,0.00013917,2]
[361592509,1747627859394,-400.0,0.00013917,2]
[361592510,1747627859405,-500.77,0.00013917,2]
[361592511,1747627859416,-400.0,0.00013917,2]
[361592512,1747627859428,-629.75,0.00013917,2]
[361592513,1747627859439,-715.21,0.00013917,2]
[361592514,1747627859451,-151.0,0.00013917,2]
[361592515,1747627859462,-795.98,0.00013917,2]
[361592516,1747627859474,-151.0,0.00013917,2]
[361592517,1747627859485,-151.0,0.00013917,2]
[361592518,1747627859497,-430.0,0.00013917,2]
[361592519,1747627859512,-262.559991,0.00013917,2]
[361592520,1747627859523,-630.4,0.00013917,2]
[361592521,1747627859535,-400.0,0.00013917,2]
[361592522,1747627859547,-515.85,0.00013917,2]
[361592523,1747627859557,-400.0,0.00013917,2]
[361592524,1747627859569,-1012.21,0.00013917,2]
[361592525,1747627859580,-212.689467,0.00013917,2]
[361592526,1747627859591,-262.559991,0.00013917,2]
[361592527,1747627859602,-722.37,0.00013917,2]
[361592528,1747627859613,-410.01,0.00013917,2]
[361592529,1747627859624,-400.0,0.00013917,2]
[361592530,1747627859635,-400.0,0.00013917,2]
[361592531,1747627859646,-400.0,0.00013917,2]
[361592532,1747627859657,-418.77,0.00013917,2]
[361592533,1747627859668,-400.0,0.00013917,2]
[361592534,1747627859680,-151.0,0.00013917,2]
[361592535,1747627859691,-475.48,0.00013917,2]
[361592536,1747627859703,-1221.24,0.00013917,2]
[361592537,1747627859714,-400.0,0.00013917,2]
[361592538,1747627859726,-400.0,0.00013917,2]
[361592539,1747627859737,-400.0,0.00013917,2]
[361592540,1747627859748,-282.0167125,0.00013917,2]
[361592541,1747627859761,-740.59,0.00013917,2]
[361592542,1747627859774,-485.66,0.00013917,2]
[361592543,1747627859784,-151.0,0.00013917,2]
[361592544,1747627859795,-435.18,0.00013917,2]
[361592545,1747627859806,-531.76,0.00013917,2]
[361592546,1747627859820,-400.0,0.00013917,2]
[361592547,1747627859834,-400.0,0.00013917,2]
[361592548,1747627859846,-819.93,0.00013917,2]
[361592549,1747627859857,-400.0,0.00013917,2]
[361592550,1747627859869,-400.0,0.00013917,2]
[361592551,1747627859881,-441.59,0.00013917,2]
[361592552,1747627859892,-400.0,0.00013917,2]
[361592553,1747627859903,-444.29,0.00013917,2]
[361592554,1747627859915,-804.79,0.00013917,2]
[361592555,1747627859929,-435.66,0.00013917,2]
[361592556,1747627859940,-400.0,0.00013917,2]
[361592557,1747627859953,-496.35,0.00013917,2]
[361592558,1747627859965,-400.0,0.00013917,2]
[361592559,1747627859975,-675.81,0.00013917,2]
[361592560,1747627859985,-400.0,0.00013917,2]
[361592561,1747627859996,-400.0,0.00013917,2]
[361592562,1747627860007,-250.0,0.00013917,2]
[361592563,1747627860018,-997.42,0.00013917,2]
[361592564,1747627860029,-435.74,0.00013917,2]
[361592565,1747627860040,-625.64,0.00013917,2]
[361592566,1747627860052,-400.0,0.00013917,2]
[361592567,1747627860063,-400.0,0.00013917,2]
[361592568,1747627860076,-400.0,0.00013917,2]
[361592569,1747627860087,-697.59,0.00013917,2]
[361592570,1747627860099,-496.07,0.00013917,2]
[361592571,1747627860111,-400.0,0.00013917,2]
[361592572,1747627860123,-634.93,0.00013917,2]
[361592573,1747627860136,-742.91,0.00013917,2]
[361592574,1747627860148,-151.0,0.00013917,2]
[361592575,1747627860159,-151.0,0.00013917,2]
[361592576,1747627860170,-400.0,0.00013917,2]
[361592577,1747627860181,-400.0,0.00013917,2]
[361592578,1747627860191,-400.0,0.00013917,2]
[361592579,1747627860202,-614.67,0.00013917,2]
[361592580,1747627860213,-400.0,0.00013917,2]
[361592581,1747627860223,-985.14,0.00013917,2]
[361592582,1747627860234,-472.86,0.00013917,2]
[361592583,1747627860244,-400.0,0.00013917,2]
[361592584,1747627860254,-400.0,0.00013917,2]
[361592585,1747627860265,-400.0,0.00013917,2]
[361592586,1747627860277,-400.0,0.00013917,2]
[361592587,1747627860287,-400.0,0.00013917,2]
[361592588,1747627860298,-428.04,0.00013917,2]
[361592589,1747627860309,-400.0,0.00013917,2]
[361592590,1747627860322,-1323.49,0.00013917,2]
[361592591,1747627860333,-151.0,0.00013917,2]
[361592592,1747627860346,-151.0,0.00013917,2]
[361592593,1747627860357,-1077.1,0.00013917,2]
[361592594,1747627860369,-650.82,0.00013917,2]
[361592595,1747627860380,-400.0,0.00013917,2]
[361592596,1747627860391,-400.0,0.00013917,2]
[361592597,1747627860402,-400.0,0.00013917,2]
[361592598,1747627860413,-720.26,0.00013917,2]
[361592599,1747627860426,-1066.78,0.00013917,2]
[361592600,1747627860436,-957.01,0.00013917,2]
[361592601,1747627860447,-400.0,0.00013917,2]
[361592602,1747627860458,-400.0,0.00013917,2]
[361592603,1747627860469,-878.32,0.00013917,2]
[361592604,1747627860479,-476.62471359,0.00013917,2]
[361592605,1747627860490,-400.0,0.00013917,2]
[361592606,1747627860500,-400.0,0.00013917,2]
[361592607,1747627860511,-400.0,0.00013917,2]
[361592608,1747627860522,-423.27,0.00013917,2]
[361592609,1747627860532,-494.99,0.00013917,2]
[361592610,1747627860543,-496.79,0.00013917,2]
[361592611,1747627860554,-1168.58,0.00013917,2]
[361592612,1747627860565,-151.0,0.00013917,2]
[361592613,1747627860576,-431.88,0.00013917,2]
[361592614,1747627860587,-400.0,0.00013917,2]
[361592615,1747627860599,-151.0,0.00013917,2]
[361592616,1747627860609,-142.50200599,0.00013917,2]
[361592617,1747627860635,-8.49799401,0.00013917,2]
[361592618,1747627860644,-251.13638099,0.00013917,2]
[361592619,1747627860763,-148.86361901,0.00013917,2]
[361592620,1747627860773,-340.19638099,0.00013917,2]
[361592621,1747627860785,-59.80361901,0.00013917,2]
[361592622,1747627860795,-1862.49,0.00013917,2]
[361592623,1747627860804,-400.0,0.00013917,2]
[361592624,1747627860815,-527.11,0.00013917,2]
[361592625,1747627860827,-152.276646,0.00013917,2]
[361592626,1747627860837,-465.88,0.00013917,2]
[361592627,1747627860848,-400.0,0.00013917,2]
[361592628,1747627860864,-400.0,0.00013917,2]
[361592629,1747627860885,-490.14479965,0.00013917,2]
[361592630,1747627860897,-157.020678,0.00013917,2]
[361592631,1747627860907,-636.41,0.00013917,2]
[361592632,1747627860919,-1015.26455734,0.00013917,2]
[361592633,1747627860934,-112.22544266,0.00013917,2]
[361592634,1747627860944,-400.0,0.00013917,2]
[361592635,1747627860953,-151.0,0.00013917,2]
[361592636,1747627860962,-417.16,0.00013917,2]
[361592637,1747627860972,-400.0,0.00013917,2]
[361592638,1747627860981,-401.76,0.00013917,2]
[361592639,1747627860993,-1374.01,0.00013917,2]
[361592640,1747627861002,-400.0,0.00013917,2]
[361592641,1747627861012,-522.91,0.00013917,2]
[361592642,1747627861021,-400.0,0.00013917,2]
[361592643,1747627861030,-872.88,0.00013917,2]
[361592644,1747627861040,-400.0,0.00013917,2]
[361592645,1747627861049,-48.17323359,0.00013917,2]
[361592646,1747627861091,-351.82676641,0.00013917,2]
[361592647,1747627861100,-400.0,0.00013917,2]
[361592648,1747627861110,-999.84,0.00013917,2]
[361592649,1747627861119,-400.0,0.00013917,2]
[361592650,1747627861128,-585.1,0.00013917,2]
[361592651,1747627861137,-400.0,0.00013917,2]
[361592652,1747627861146,-220.93095857,0.00013917,2]
[361592653,1747627861156,-400.0,0.00013917,2]
[361592654,1747627861165,-933.11,0.00013917,2]
[361592655,1747627861176,-890.06,0.00013917,2]
[361592656,1747627861186,-462.98,0.00013917,2]
[361592657,1747627861195,-535.06,0.00013917,2]
[361592658,1747627861205,-151.0,0.00013917,2]
[361592659,1747627861215,-151.0,0.00013917,2]
[361592660,1747627861224,-582.71,0.00013917,2]
[361592661,1747627861234,-227.897626,0.00013917,2]
[361592662,1747627861244,-893.4,0.00013917,2]
[361592663,1747627861253,-227.897626,0.00013917,2]
[361592664,1747627861262,-400.0,0.00013917,2]
[361592665,1747627861271,-457.19531557,0.00013917,2]
[361592666,1747627861280,-227.897626,0.00013917,2]
[361592667,1747627861868,-227.897626,0.00013917,2]
[361592668,1747627861896,-400.0,0.00013917,2]
[361592669,1747627861916,-151.0,0.00013917,2]
[361592670,1747627861934,-151.0,0.00013917,2]
[361592671,1747627861950,-400.0,0.00013917,2]
[361592672,1747627861959,-400.0,0.00013917,2]
[361592673,1747627861968,-176.501073,0.00013917,2]
[361592674,1747627861978,-400.0,0.00013917,2]
[361592675,1747627861987,-176.501073,0.00013917,2]
[361592676,1747627861996,-1289.08,0.00013917,2]
[361592677,1747627862006,-400.0,0.00013917,2]